Cogmind - Beta 14 @@@ ROGUE MODE // 2024.09.26 @ 16:26:19 Player: Kinga Result: Destroyed by L-31 Rogue with Katana Performance ------------- Evolutions (2) 1000 Regions Visited (8) 1600 Robots Destroyed (96) 480 Value Destroyed (2942) 2942 Prototype IDs (6) 120 Alien Tech Used (0) 0 Bonus (1375) 1375 TOTAL SCORE: 7517 Bonus ------- High Alert Combat Kills 490 Follower Combat Kills 7 Entered Garrisons 200 Used RIF Installer 500 Aligned with FarCom 300 Friendly Fire -122 Cogmind --------- Core Integrity 0/550 Matter 240/300 Energy 72/265 System Corruption 17% Temperature Cool (19) Movement Rolling (260) Ox12 Location -8/Materials Parts ------- > --- POWER (1) -------- Reinforced Ion Engine > --- PROPULSION (2) --- Light Treads Wheel > --- UTILITY (6) ------ Improved Cooling System Huge Storage Unit Layered Medium Armor Plating Medium Reflective Plating Graphene Brace > --- WEAPON (2) ------- Variable Charge Gun Advanced Plasma Cannon > --- INVENTORY (25) --- Light Ion Engine Compact Wheel Compact Wheel High-capacity Battery (250) Advanced ECM Suite Improved Light Armor Plating Authchip [R/Combat] Authchip [R/Combat] Relay Coupler [Swarmer] (37) Relay Coupler [Grunt] (27) Relay Coupler [Duelist] (26) Particle Gun Heavy Laser Latent Energy Streamer Mass Driver Shock Bomb Launcher Shock Bomb Launcher Mini Grenade Launcher Mini Grenade Launcher Improved Datajack Improved Datajack Improved Plasma Cutter Heavy Hammer Scythe Peak State ------------ > --- POWER ------------ Reinforced Ion Engine > --- PROPULSION ------- Light Treads Wheel > --- UTILITY ---------- Improved Cooling System Huge Storage Unit Layered Medium Armor Plating Medium Reflective Plating Graphene Brace > --- WEAPON ----------- Latent Energy Streamer Advanced Plasma Cannon > --- INVENTORY -------- Light Ion Engine Compact Wheel Compact Wheel High-capacity Battery Advanced ECM Suite Improved Light Armor Plating Authchip [R/Combat] Authchip [R/Combat] Relay Coupler [Swarmer] Relay Coupler [Grunt] Relay Coupler [Duelist] Particle Gun Heavy Laser Variable Charge Gun Mass Driver Shock Bomb Launcher Shock Bomb Launcher Mini Grenade Launcher Mini Grenade Launcher Improved Datajack Improved Datajack Improved Plasma Cutter Heavy Hammer Scythe [Rating: 48] Favorites ----------- Power Light Nuclear Core Engine Reinforced Ion Engine Power Core Light Nuclear Core Propulsion Wheel Treads Light Treads Wheel Wheel Utility Hardened Light Armor Plating Device Improved Heat Sink Storage Huge Storage Unit Processor Improved Signal Interpreter Protection Hardened Light Armor Plating Weapon Heavy Ion Cannon Energy Gun Medium Laser Energy Cannon Heavy Ion Cannon Ballistic Cannon Gauss Cannon Launcher Mini Grenade Launcher Build | -11 -10 -9 -9 -9 -8 -8 -8 -8 ------- Run | Yrd Mat Mat Min Exi Min Mat Gar Mat Slots Evolved 4 | . . 2 . . . 2 . . Power . | . . . . . . . . . Propulsion . | . . . . . . . . . Utility 4 | . . 2 . . . 2 . . Weapon . | . . . . . . . . . Parts Attached 91 | 6 2 1 9 4 . 39 23 7 Power 11 | 1 . . 2 . . 6 2 . Engine 9 | 1 . . 1 . . 5 2 . Core 2 | . . . 1 . . 1 . . Reactor . | . . . . . . . . . Propulsion 19 | 2 . . 3 . . 9 3 2 Treads 8 | 2 . . 1 . . 2 3 . Leg . | . . . . . . . . . Wheel 11 | . . . 2 . . 7 . 2 Hover . | . . . . . . . . . Flight . | . . . . . . . . . Utility 35 | 1 2 1 2 3 . 15 9 2 Device 11 | . 1 . 2 1 . 5 2 . Storage 5 | 1 . 1 . 2 . . 1 . Processor 3 | . . . . . . 3 . . Hackware . | . . . . . . . . . Protection 16 | . 1 . . . . 7 6 2 Artifact . | . . . . . . . . . Weapon 26 | 2 . . 2 1 . 9 9 3 Energy Gun 6 | 2 . . 2 . . . . 2 Energy Cannon 15 | . . . . 1 . 7 6 1 Ballistic Gun . | . . . . . . . . . Ballistic Cannon 3 | . . . . . . 2 1 . Launcher 2 | . . . . . . . 2 . Special Weapon . | . . . . . . . . . Impact Weapon . | . . . . . . . . . Slashing Weapon . | . . . . . . . . . Piercing Weapon . | . . . . . . . . . Special Melee Weapon . | . . . . . . . . . Unidentified Prototypes 4 | . . . . 3 . 1 . . Corrupted Parts 1 | . . . . . . . 1 . System Corruption 2 | . . . . . . . 2 . Parts Lost 36 | . . . 7 . . 18 9 2 Power 7 | . . . 1 . . 4 2 . Propulsion 9 | . . . 2 . . 4 3 . Utility 14 | . . . 2 . . 7 4 1 Weapon 6 | . . . 2 . . 3 . 1 Highest Loss Streak 8 | . . . 6 . . 8 4 1 To Critical Strikes . | . . . . . . . . . Average Slot Usage (%) 86 | . 98 77 72 69 66 93 92 97 Engine 4 | . 14 11 8 . . 3 4 9 Core 4 | . . . . 11 11 5 3 . Treads 6 | . 28 22 19 . . . 9 9 Wheel 11 | . . . 1 22 22 15 3 7 Device 12 | . 11 . 7 11 11 13 12 18 Storage 10 | . 14 11 8 11 11 9 13 12 Processor 3 | . . . . . . 8 . . Protection 15 | . . 11 8 . . 19 25 23 Energy Gun 5 | . 28 22 18 14 11 . . 3 Energy Cannon 9 | . . . . . . 16 10 9 Ballistic Cannon 2 | . . . . . . 1 7 5 Peak Build Rating 48 | 6 7 8 11 22 12 34 41 48 Average Rating 24 | 3 6 7 6 12 12 30 33 43 On Entrance 14 | . 6 7 7 11 12 12 32 41 Naked Turns . | . . . . . . . . . Heaviest Build 127 | 12 15 90 91 91 89 127 125 127 Greatest Support 40 | 40 40 40 40 26 26 40 40 20 Greatest Overweight (x) 12 | . . 2 4 3 3 12 11 12 Average Overweight (x) 4 | . . . 1 3 3 5 7 11 Largest Inventory Capacity 25 | 8 8 25 25 25 25 25 25 25 Average Capacity 23 | 6 8 16 20 25 25 25 25 25 Most Carried 25 | 5 5 6 6 3 5 25 25 25 Average Carried 16 | 3 4 5 4 2 4 21 23 24 Final Capacity 25 | 8 8 25 5 25 25 25 25 25 Final Carried 25 | 4 5 6 3 3 5 25 25 24 Class Distribution -------------------- 55% | Scavenger-Mutant 43% | Mutant Dominant Class ---------------- Mutant | -10/Materials Mutant | -9/Materials Mutant | -9/Mines Mutant | -9/Exiles Mutant | -8/Mines Scavenger-Mutant | -8/Materials Scavenger-Mutant | -8/Garrison Scavenger-Mutant | -8/Materials Resources | -11 -10 -9 -9 -9 -8 -8 -8 -8 ----------- Run | Yrd Mat Mat Min Exi Min Mat Gar Mat Matter Collected 1670 | 205 30 51 94 . 40 565 359 326 Remotely . | . . . . . . . . . Salvage Created 3501 | . 84 51 194 . 47 1878 516 731 Parts 214 | . 6 . 8 . 3 115 43 39 Haulers Intercepted 5 | . 1 . . . . 4 . . Recyclers Shooed 1 | . . . 1 . . . . . Parts Field Recycled . | . . . . . . . . . Retrieved Matter . | . . . . . . . . . Parts Self-Destructed . | . . . . . . . . . Prevented . | . . . . . . . . . Kills | -11 -10 -9 -9 -9 -8 -8 -8 -8 ------- Run | Yrd Mat Mat Min Exi Min Mat Gar Mat Combat Hostiles Destroyed 73 | . 2 1 9 . . 30 21 10 Guns 13 | . 2 . 9 . . . . 2 Cannons 48 | . . . . . . 26 18 4 AOE 9 | . . . . . . 2 3 4 Classes Destroyed 18 | . 3 1 1 . 1 7 3 2 Worker 8 | . . . . . 2 5 . 1 Builder 2 | . . . . . . 1 . 1 Tunneler 1 | . . . . . . . . 1 Hauler 5 | . 1 . . . . 4 . . Recycler 3 | . . . . . . 1 . 2 Operator 2 | . . . . . . . 1 1 Watcher 3 | . . . . . . 2 . 1 Swarmer 21 | . 1 . 6 . . 4 10 . Cutter 2 | . . . . . . . 2 . Grunt 27 | . 1 . 2 . . 14 3 7 Brawler 1 | . . . . . . 1 . . Duelist 1 | . . . . . . 1 . . Protector 1 | . . . . . . . . 1 Sentry 15 | . . 1 . . . 8 5 1 Hunter 2 | . . . . . . 1 . 1 Heavy 1 | . . . . . . 1 . . Behemoth 1 | . . . . . . . 1 . Assembled 1 | . . . 1 . . . . . Best Kill Streak 7 | . 2 1 3 . 1 7 4 6 Combat Bots Only 6 | . 2 1 3 . . 6 4 4 Max Kills in Single Turn 6 | . 1 1 1 . 1 2 3 6 Gunslinging . | . . . . . . . . . Exploded 4 | . . . . . . 2 3 4 Melee . | . . . . . . . . . Uniques/NPCs Destroyed . | . . . . . . . . . Combat | -11 -10 -9 -9 -9 -8 -8 -8 -8 -------- Run | Yrd Mat Mat Min Exi Min Mat Gar Mat Hostile Shots Fired 423 | . 7 11 74 . . 177 120 34 Missed 106 | . 1 4 24 . . 42 31 4 Damage Taken 5100 | . 52 101 910 . . 2170 1326 541 Core 794 | . 17 . 224 . . 308 193 52 Absorbed by Shields . | . . . . . . . . . Ignored by Resistances 64 | . . . . . . . . 64 Core Remaining (%) 79 | 100 93 . . . 44 . . . Volleys Fired 233 | . 9 5 22 . 3 114 58 22 Largest 2 | . 2 2 2 . 1 2 2 2 Hottest 167 | . 100 100 100 . 65 133 146 167 Shots Fired 433 | . 18 10 40 . 3 213 107 42 Gun 79 | . 18 10 40 . 3 . . 8 Cannon 352 | . . . . . . 213 105 34 Launcher 2 | . . . . . . . 2 . Special . | . . . . . . . . . Kinetic 70 | . . . . . . 10 49 11 Thermal 356 | . 18 10 40 . 3 202 53 30 Explosive 2 | . . . . . . . 2 . Electromagnetic 5 | . . . . . . 1 3 1 Robot Hit Streak 11 | . 6 11 7 . 9 10 8 7 Robot Miss Streak 6 | . 4 2 2 . . 5 6 1 Penetration Max 1 | . . . . . . . 1 . Secondary Targets . | . . . . . . . . . Shots Hit Robots 241 | . 10 7 28 . 3 112 55 26 Core Hits 128 | . 5 1 13 . 2 58 28 21 Critical Kills 1 | . . . . . . . . 1 Critical Parts Destroyed . | . . . . . . . . . Critical Strikes 7 | . 1 1 . . . . 4 1 Burn 2 | . 1 1 . . . . . . Meltdown 1 | . . . . . . . . 1 Blast 4 | . . . . . . . 4 . Melee Attacks . | . . . . . . . . . Impact . | . . . . . . . . . Slashing . | . . . . . . . . . Piercing . | . . . . . . . . . Sneak Attacks . | . . . . . . . . . Combat Hostiles . | . . . . . . . . . Follow-up Attacks . | . . . . . . . . . Damage Inflicted 7846 | . 121 88 356 . 45 3613 1940 1683 Guns 733 | . 121 88 350 . 45 . . 129 Cannons 5349 | . . . . . . 3064 1625 660 Explosions 1737 | . . . . . . 528 315 894 Melee . | . . . . . . . . . Ramming 27 | . . . 6 . . 21 . . Kinetic 1141 | . . . . . . 164 787 190 Thermal 4997 | . 121 88 350 . 45 2969 832 592 Explosive 196 | . . . . . . . 196 . Electromagnetic 1485 | . . . . . . 459 125 901 Impact . | . . . . . . . . . Slashing . | . . . . . . . . . Piercing . | . . . . . . . . . Highest Corruption 17 | . . . . . . 6 14 17 Average Corruption 7 | . . . . . . 4 9 14 Corruption Purged . | . . . . . . . . . Corruption Blocked . | . . . . . . . . . Effects 103 | . . . . . . 37 46 20 Message Errors 25 | . . . . . . 7 14 4 Matter Fused 22 | . . . . . . 8 10 4 Heat Flow Errors 15 | . . . . . . 8 4 3 Energy Discharges 10 | . . . . . . 5 2 3 Parts Rejected 1 | . . . . . . . . 1 Data Loss (minor) 9 | . . . . . . 3 5 1 Data Loss (major) 9 | . . . . . . 4 5 . Misfires 5 | . . . . . . 2 1 2 Alerts 2 | . . . . . . . 1 1 Weapon Failures 5 | . . . . . . . 4 1 Overload Shots . | . . . . . . . . . Overflow Damage 199 | . . . . . . 85 42 72 Projectiles 84 | . . . . . . 39 42 3 Explosions 109 | . . . . . . 40 . 69 Melee 6 | . . . . . . 6 . . Knockbacks 6 | . . . . . . . 4 2 Impact . | . . . . . . . . . Kinetic 6 | . . . . . . . 4 2 Secondary . | . . . . . . . . . Self-Inflicted Damage 157 | . . . . . . 10 47 100 Shots 2 | . . . . . . . 1 1 Rammed 3 | . . . 2 . . 1 . . Targets Rammed 3 | . . . 2 . . 1 . . Kicked . | . . . . . . . . . Crushed . | . . . . . . . . . Highest Temperature 539 | . 174 231 334 . . 539 536 307 Average Temperature 136 | . 77 120 132 . . 148 147 97 Received Heat Transfer 1833 | . 18 45 134 . . 891 547 198 Effects 39 | . . 2 3 . . 18 15 1 Shutdowns 6 | . . . . . . 5 1 . Energy Bleed 4 | . . . . . . 2 1 1 Interference 18 | . . 2 2 . . 7 7 . Matter Decay 2 | . . . . . . 2 . . Short Circuit 2 | . . . 1 . . 1 . . Damage (minor) 1 | . . . . . . 1 . . Damage (major) 5 | . . . . . . . 5 . Damage (core) 1 | . . . . . . . 1 . Siege Activations . | . . . . . . . . . Robots Corrupted 1 | . . . . . . 1 . . Combat Hostiles . | . . . . . . . . . Parts Fried 8 | . . . . . . 4 . 4 Impact Corruptions 1 | . . . . . . 1 . . Robots Melted 4 | . . 1 . . . 2 . 1 Combat Hostiles 3 | . . 1 . . . 2 . . Parts Melted 10 | . . 1 . . . 4 3 2 Heat Transferred 8214 | . 444 333 1036 . 111 4194 1137 959 Parts Sabotaged . | . . . . . . . . . Parts Stolen . | . . . . . . . . . Parts Stripped . | . . . . . . . . . Power Chain Reactions . | . . . . . . . . . Latent Energy Used 583 | . . . . . . 177 206 200 LE Corruption 11 | . . . . . . 3 5 3 Alert | -11 -10 -9 -9 -9 -8 -8 -8 -8 ------- Run | Yrd Mat Mat Min Exi Min Mat Gar Mat Peak Influence 1055 | . 87 88 244 . 10 647 1055 702 Initial 514 | . . 36 34 . . 3 397 514 Average 430 | . 44 50 141 . 5 423 780 575 Maximum Alert Level 3 | . . . 1 . . 2 3 3 Low Security (%) 30 | 100 100 100 54 . 100 22 . . Level 1 11 | . . . 45 . . 11 5 . Level 2 42 | . . . . . . 65 33 81 Level 3 15 | . . . . . . . 61 18 Level 4 . | . . . . . . . . . Level 5 . | . . . . . . . . . High Security . | . . . . . . . . . Max Security . | . . . . . . . . . Squads Dispatched 8 | . . 1 . . . 4 . 3 Investigation . | . . . . . . . . . Extermination . | . . . . . . . . . Reinforcement 6 | . . 1 . . . 3 . 2 Assault 2 | . . . . . . 1 . 1 Garrison . | . . . . . . . . . Intercept . | . . . . . . . . . Searches Triggered . | . . . . . . . . . Construction Impeded 2 | . . . . . . 1 . 1 Haulers Reinforced . | . . . . . . . . . Active Scanning Responses . | . . . . . . . . . Cargo Convoy Interrupts . | . . . . . . . . . Stealth | -11 -10 -9 -9 -9 -8 -8 -8 -8 --------- Run | Yrd Mat Mat Min Exi Min Mat Gar Mat Distress Signals 6 | . 1 . . . . 3 1 1 Communications Jammed . | . . . . . . . . . Distress Signals . | . . . . . . . . . Times Spotted 116 | . 4 2 18 . . 58 21 13 Peak Tracking Total 12 | . 7 2 12 . . 9 4 7 Tactical Retreats 12 | . 1 . 3 . . 5 3 . Traps | -11 -10 -9 -9 -9 -8 -8 -8 -8 ------- Run | Yrd Mat Mat Min Exi Min Mat Gar Mat Traps Triggered 3 | . . . . . . 2 1 . Indirectly . | . . . . . . . . . Trap Hack Attempts . | . . . . . . . . . Triggered . | . . . . . . . . . Disarmed . | . . . . . . . . . Reprogrammed . | . . . . . . . . . Reused . | . . . . . . . . . Traps Extracted . | . . . . . . . . . Installed . | . . . . . . . . . Triggered . | . . . . . . . . . Machines | -11 -10 -9 -9 -9 -8 -8 -8 -8 ---------- Run | Yrd Mat Mat Min Exi Min Mat Gar Mat Machines Disabled 8 | . . . 1 . . 5 2 . Max in Single Turn 2 | . . . 1 . . 2 1 . Garrison Relay 1 | . . . . . . . 1 . Machines Repaired . | . . . . . . . . . Machines Dismantled . | . . . . . . . . . Machines Sabotaged . | . . . . . . . . . Overloaded Fab Kills . | . . . . . . . . . Hacking | -11 -10 -9 -9 -9 -8 -8 -8 -8 --------- Run | Yrd Mat Mat Min Exi Min Mat Gar Mat Machines Accessed 13 | . . 1 . 1 . 7 2 2 Terminals 11 | . . 1 . . . 6 2 2 Fabricators . | . . . . . . . . . Repair Stations . | . . . . . . . . . Recycling Units . | . . . . . . . . . Scanalyzers . | . . . . . . . . . Garrison Access 1 | . . . . . . 1 . . Total Hacks 31 | . . 3 . 4 . 15 3 6 Successful 12 | . . 2 . 4 . 5 1 . Failed 19 | . . 1 . . . 10 2 6 Catastrophic 8 | . . . . . . 7 . 1 Database Lockouts . | . . . . . . . . . Manual 17 | . . . . 1 . 10 . 6 Terminals 26 | . . 3 . . . 14 3 6 Fabricators . | . . . . . . . . . Repair Stations . | . . . . . . . . . Recycling Units . | . . . . . . . . . Scanalyzers . | . . . . . . . . . Garrison Access 1 | . . . . . . 1 . . Terminal Hacks 9 | . . 2 . 4 . 2 1 . Record 4 | . . . . 4 . . . . Prototype ID Bank 1 | . . . . . . 1 . . Branch Access Points 1 | . . 1 . . . . . . Garrison Index 1 | . . . . . . 1 . . Hauler Manifests 1 | . . 1 . . . . . . Garrison Registry 1 | . . . . . . . 1 . Fabricator Hacks . | . . . . . . . . . Repair Station Hacks . | . . . . . . . . . Recycling Unit Hacks . | . . . . . . . . . Scanalyzer . | . . . . . . . . . Garrison Access Hacks 1 | . . . . . . 1 . . Unlock Access 1 | . . . . . . 1 . . Unauthorized Hacks 2 | . . . . . . 2 . . Terminals 2 | . . . . . . 2 . . Assimilate 2 | . . . . . . 2 . . Fabricators . | . . . . . . . . . Repair Stations . | . . . . . . . . . Recycling Units . | . . . . . . . . . Scanalyzers . | . . . . . . . . . Garrison Access . | . . . . . . . . . Data Cores Recovered . | . . . . . . . . . Used . | . . . . . . . . . Hacking Detections 7 | . . . . . . 4 1 2 Full Trace Events 3 | . . . . . . 2 1 . Feedback Events . | . . . . . . . . . Feedback Blocked . | . . . . . . . . . Robot Schematics Acquired . | . . . . . . . . . Robots Built . | . . . . . . . . . Authchips . | . . . . . . . . . Time . | . . . . . . . . . Total Robot Build Rating . | . . . . . . . . . Part Schematics Acquired . | . . . . . . . . . Parts Built . | . . . . . . . . . Authchips . | . . . . . . . . . Time . | . . . . . . . . . Total Part Build Rating . | . . . . . . . . . Parts Repaired . | . . . . . . . . . Time . | . . . . . . . . . Parts Recycled . | . . . . . . . . . Recycled Matter . | . . . . . . . . . Retrieved Matter . | . . . . . . . . . Retrieved Components . | . . . . . . . . . Parts Scanalyzed . | . . . . . . . . . Part Schematics Acquired . | . . . . . . . . . Parts Damaged . | . . . . . . . . . Bothacking | -11 -10 -9 -9 -9 -8 -8 -8 -8 ------------ Run | Yrd Mat Mat Min Exi Min Mat Gar Mat Used RIF Installer 1 | . . . . . . . 1 . Robots Hacked . | . . . . . . . . . Non-combat . | . . . . . . . . . Combat . | . . . . . . . . . Robot Hacks Applied . | . . . . . . . . . Relay Couplers Released 3 | . . . . . . . 3 . Machine Destruction 3 | . . . . . . . 3 . Fabnet Peak Effective % . | . . . . . . . . . Robots Rewired 3 | . . . . . . . 3 . Allies Hacked . | . . . . . . . . . Hacks Repelled . | . . . . . . . . . Allies | -11 -10 -9 -9 -9 -8 -8 -8 -8 -------- Run | Yrd Mat Mat Min Exi Min Mat Gar Mat Total Allies 5 | . . . . . . 2 3 . Largest Group 4 | . . . . . . 1 4 . Highest-Rated Group 63 | . . . . . . 10 63 . Highest-Rated Ally 18 | . . . . . . 10 18 . Total Orders . | . . . . . . . . . Ally Attacks 7 | . . . . . . . 7 . Total Damage 66 | . . . . . . . 66 . Kills 1 | . . . . . . . 1 . Allies Corrupted . | . . . . . . . . . Allies Melted . | . . . . . . . . . Intel | -11 -10 -9 -9 -9 -8 -8 -8 -8 ------- Run | Yrd Mat Mat Min Exi Min Mat Gar Mat Robot Analysis Total . | . . . . . . . . . Derelict Logs Recovered 1 | . . . 1 . . . . . Drone Launches . | . . . . . . . . . Drone Recoveries . | . . . . . . . . . Exploration | -11 -10 -9 -9 -9 -8 -8 -8 -8 ------------- Run | Yrd Mat Mat Min Exi Min Mat Gar Mat Turns Passed 6228 | 89 151 161 675 604 370 2428 1330 420 Spaces Moved 2789 | 53 74 70 256 443 267 1196 316 114 Core 82 | 7 . . 75 . . . . . Treads 496 | 46 74 70 146 . . 14 134 12 Legs . | . . . . . . . . . Wheels 2211 | . . . 35 443 267 1182 182 102 Hover . | . . . . . . . . . Flight . | . . . . . . . . . Fastest Speed 50 | 50 160 160 50 135 135 135 155 245 Average Speed 187 | 145 160 208 210 135 135 165 340 299 Slowest Speed 640 | 160 160 320 480 135 135 405 640 640 Overloaded Moves . | . . . . . . . . . Propulsion Burnouts . | . . . . . . . . . Robots Hopped . | . . . . . . . . . Cave-ins Triggered . | . . . . . . . . . Exploration Rate (%) 42 | 5 26 7 51 90 52 88 46 15 Regions Visited 8 Branch Regions 3 Pre-discovered Areas 2 | . . . 1 1 . . . . Known Exits Taken 2 | . . 1 . . . 1 . . Unknown Exits Taken 5 | 1 1 . 1 1 1 . . . Scrap Searched 2 | . . . 1 . 1 . . . Spaces Dug 1 | . . . . . . 1 . . Terrain Destroyed 151 | . . . . . . 101 6 44 Melee . | . . . . . . . . . Projectile 74 | . . . . . . 61 1 12 AOE 77 | . . . . . . 40 5 32 Terrain Rammed . | . . . . . . . . . Walls Destroyed . | . . . . . . . . . Machines Disabled . | . . . . . . . . . Actions | -11 -10 -9 -9 -9 -8 -8 -8 -8 --------- Run | Yrd Mat Mat Min Exi Min Mat Gar Mat Total 3331 | 63 88 77 346 449 273 1419 464 152 Wait 121 | . 3 . 56 . 2 34 25 1 Move 2780 | 52 73 69 255 442 266 1195 314 114 Hop . | . . . . . . . . . Pick Up 52 | 5 1 1 . . 2 30 10 3 Fast Attach 33 | 5 1 1 4 2 . 14 3 3 Attach 23 | 1 . . 3 1 . 11 7 . Detach 2 | . . . 1 1 . . . . Swap 35 | . 1 . 2 1 . 14 13 4 Drop 19 | . . 1 1 2 . 6 4 5 Fire 233 | . 9 5 22 . 3 114 58 22 Melee . | . . . . . . . . . Ram 1 | . . . . . . 1 . . Kick . | . . . . . . . . . Crush 2 | . . . 2 . . . . . Escape Stasis 8 | . . . . . . . 8 . Rewire 22 | . . . . . . . 22 . Trap . | . . . . . . . . . Miscellaneous . | . . . . . . . . . Route ------- -11/Scrapyard -10/Materials -9/Materials (discovered 4 exits: *Min x2 / Sto x2) -9/Mines (discovered 4 exits: *Mat x2 / *Exi / [*Zio]) -9/Exiles (discovered 2 exits: [*Min x2]) -8/Mines -8/Materials (discovered 3 exits: *Fac x2 / Gar) -8/Garrison (discovered 3 exits: *Mat x3) -8/Materials History --------- Turn | Location | Event 4 | -11/Scrapyard | Discovered new exit (range 14) 90 | -11/Scrapyard | Entered Materials 204 | -10/Materials | Discovered new exit (range 6) 241 | -10/Materials | Entered another Materials area 241 | -9/Materials | Evolved 2 slots: Utility x2 281 | -9/Materials | Identified exit to Mines 281 | -9/Materials | Identified exit to Storage 310 | -9/Materials | Build established: Mutant 402 | -9/Materials | Entered Mines 429 | -9/Mines | Discovered new exit (range 10) 910 | -9/Mines | Assembled infested the area 969 | -9/Mines | Lost 6 parts (1p1n2u2w) 1031 | -9/Mines | Learned location of Storage (-9) 1034 | -9/Mines | Core integrity fell below 50% 1059 | -9/Mines | Discovered new exit (range 7) 1060 | -9/Mines | A Derelict revealed a hidden shortcut to a safe place 1072 | -9/Mines | Deemed a non-threat by the Exiles lab entrance 1073 | -9/Mines | Discovered new exit (range 5) 1077 | -9/Mines | Entered Exiles 1096 | -9/Exiles | Discovered new exit (range 15) 1115 | -9/Exiles | Met 8R-AWN 1132 | -9/Exiles | Met EX-HEX 1173 | -9/Exiles | Met EX-BIN 1193 | -9/Exiles | Aligned with FarCom system 1195 | -9/Exiles | Given EX-Vault access code 1228 | -9/Exiles | Opened EX-Vault 1234 | -9/Exiles | Found Prototype Storage 1234 | -9/Exiles | Identified Superbattery 1237 | -9/Exiles | Found Prototype Device 1237 | -9/Exiles | Identified Trap Reconfigurator 1243 | -9/Exiles | Found Prototype Energy Cannon 1243 | -9/Exiles | Identified Latent Energy Streamer 1275 | -9/Exiles | Warned to stay clear of 0b10 Research branches 1377 | -9/Exiles | Met EX-DEC 1429 | -9/Exiles | Learned location of Zion (-7) 1492 | -9/Exiles | Visited The Gauntlet 1665 | -9/Exiles | Discovered new exit (range 14) 1681 | -9/Exiles | Left Exiles lab with Latent Energy Streamer 1681 | -9/Exiles | Entered Mines 2047 | -8/Mines | Discovered new exit (range 3) 2051 | -8/Mines | Entered Materials 2051 | -8/Materials | Evolved 2 slots: Utility x2 2431 | -8/Materials | Build established: Scavenger-Mutant 2598 | -8/Materials | Lost 3 parts (1p1n1w) 2815 | -8/Materials | Lost 8 parts (2p1n4u1w) 2927 | -8/Materials | Discovered new exit (range 5) 2932 | -8/Materials | Identified exit to Factory 3218 | -8/Materials | Core integrity fell below 50% 3240 | -8/Materials | Discovered exit to Factory (range 12) 4451 | -8/Materials | First assault squad dispatched 4478 | -8/Materials | Identified exit to Garrison 4479 | -8/Materials | Entered Garrison 4479 | -8/Garrison | Accompanied by 1 ally 4637 | -8/Garrison | Triggered checkpoint 4700 | -8/Garrison | Garrison Relay disabled 4701 | -8/Garrison | Triggered checkpoint 4926 | -8/Garrison | Discovered new exit (range 76) 4926 | -8/Garrison | Discovered new exit (range 39) 4926 | -8/Garrison | Discovered new exit (range 71) 5046 | -8/Garrison | Lost 3 allies 5087 | -8/Garrison | Triggered checkpoint 5148 | -8/Garrison | System corruption reached 10% 5309 | -8/Garrison | Build established: Mutant 5319 | -8/Garrison | Spotted B-75 Beast 5334 | -8/Garrison | Destroyed B-75 Beast 5336 | -8/Garrison | Core integrity fell below 20% 5361 | -8/Garrison | Lost 4 parts (1p1n2u) 5562 | -8/Garrison | Installed Relay Interface Framework 5655 | -8/Garrison | Build established: Scavenger-Mutant 5809 | -8/Garrison | Entered Materials 6209 | -8/Materials | First assault squad dispatched 6229 | -8/Materials | Destroyed by L-31 Rogue with Katana Last Messages --------------- 06223_ I-25 Savior unfolds itself. 06223_ Insulated Plating destroyed. 06223_ K-01 Serf collects debris. 06225_ W-25 Informer sends out distress signal. 06225_ I-25 Savior destroyed. 06225_ Adv. Heat Sink fried. 06225_ G-50 Soldier destroyed. 06225_ Destroyed Wheel. 06225_ K-01 Serf destroyed. 06225_ G-47 Trooper destroyed. 06225_ Destroyed Imp. Hover Unit. 06225_ Destroyed Unknown Engine. 06225_ Imp. Sensor Array fried. 06225_ Imp. Hover Unit fried. 06225_ Visual Processing Unit fried. 06225_ W-25 Informer destroyed. 06225_ G-47 Trooper destroyed. 06227_ R-06 Scavenger collects Lgt. Nuclear Core. 06228_ ALERT: Hostiles spotted, dispatching reinforcements to Terminal M003. Map ----- +----------------------------------------------------+ | ????????????????????????????????????????? | | ????????????????????????????????????????? | | ????????????????????????????????????????? | | ????????????????????????????????????????? | | ????????????????????????????????????????? | | ????????????????????????????????????????? | | ????????????????????????????????????????? | | ????????????????????????????????????????? | | ????????????????????????????????????????? | | ????????????????????????????????????????? | | ????????????????????????????????????????? | | ??????????????????????### ??????????????? | | ?????????????????g???? ??????????????? | | ??????????????g??????? ??????????????? | | ?????????????????g???? ??????????????? | | ?????????????????????? #??????????????? | | ?????????????????????? #??????????????? | | ?????????????????????# #??????????????? | | ?????????????????????# #??????????????? | | ?????????????????????# #??????????????? | | ???????????????####### ##?????????????? | | ??????????????## ## ;#????????? ?? | | ?????????????## ; #?????????# #? | | ??????########;;;;;=;;= r#?????????# #? | | ??????# *!%*%% #?????????# #? | | ??????# @l%!=[= #???????#?# #? | | ??????# ######;;;=%;; ####### ### #? | | ??????????????##;; # # #[ #? | | ???????????????#Y#;### #] ""#%* #? | | ??????????????? ?# # T"#[ #? | | ??????????????? "? # # """ ""# #? | | ??????????????? ""? # # """"" # #? | | ??????????????? ""?? # + """"" ?" #? | | ??????????????? ""?? # # """"" ??# #? | | ??????????????? "???# # """ ??# #? | | ??????????????+ ?????# !########### ## | | ??????????????# ?????# !!=%!%= * = | | ??????????????# ?????# ! * ! = | | ??????????????? ?????# ]!]* | | ?????????????????????####+######+######## | | ???????????????????????? ??# ???????? | | ???????????????????????? ??# ?????????? | | ??????????????????????? ?#??????????? | | ??????????????????????? ????????????? | | ??????????????????????# ???????????? | | ??????????????????????# ???????????? | | ??????????????????????# #??????????? | | ??????????????????????# #??????????? | | ??????????????????????# #??????????? | | ??????????????????????# #??????????? | +----------------------------------------------------+ Best States ------------- Heat Dissipation 59 Energy Generation 16 Energy Capacity 515 Matter Stores 300 Matter Capacity 300 Sight Range 20 Terrain Scan Density 10 Armor Coverage 600 Resistance: TH 15 Resistance: EM 15 Evasion (%) 50 Recoil Reduction 2 Authchip Count 2 Item Schematics ----------------- None Robot Schematics ------------------ None Fabricated ------------ Nothing Alien Tech Used ----------------- None Achievements -------------- None Challenges ------------ None Game ------ Seed BeamPoweredExoskeleton Manual? 0 Play Time 00:36:58 Cumulative 98.2 hours Start 2024.09.26 @ 15:51:54 End 2024.09.26 @ 16:26:19 Sessions 1 Manual Loads 0 Difficulty Rogue Special Mode None Game No. 114 Rogue 110 Adventurer 0 Explorer 4 Win Type - Total 6 Types 4/0/0/2/0/0/0/0/0 Lore% 43 Gallery% 63 Achievement% 56 Wizard Run 0 Options --------- Layout 0 ASCII 0 Keyboard 0 Movement Numpad Keybinds 0 Fullscreen 2 Font 18/SmallcapsGlow Map View 76x50 Zoom Use 0% Tactical HUD 1 Map Filters NONE Filters NONE Steam 1 RUN: a10c5584-e9ba-4f6e-a4e1-0aea272bc195